fUSD/lending_fUSD_20240904
["ID","MTS","AMOUNT","RATE_DAILY","PERIOD"]
[337143065,1725453782254,-1000.0,0.00052999,120]
[337143066,1725453782278,-500.0,0.00052999,120]
[337143067,1725453782302,-200.0,0.00053,120]
[337143068,1725453782326,-378000.0,0.00053,60]
[337143069,1725453782351,-151.0,0.00053014,120]
[337143070,1725453782376,-2000.0,0.0005306,120]
[337143071,1725453782401,-339.00897911,0.000531,120]
[337143072,1725453782424,-2615.08,0.0005315,120]
[337143073,1725453782448,-8196.8,0.00053186,117]
[337143074,1725453782524,900.0,0.00038,120]
[337143075,1725453782569,55235.40260274,0.00049399,120]
[337143076,1725453782621,900.0,0.00042,120]
[337143077,1725453786442,900.0,0.00046,120]
[337143078,1725453786475,334.46,0.00010959,2]
[337143079,1725453789569,900.0,0.00046,120]
[337143080,1725453790959,900.0,0.00046,120]
[337143081,1725453803911,2000.0,0.00026146,120]
[337143082,1725453815179,500.0,0.00025071,120]
[337143083,1725453815650,500.0,0.00026371,120]
[337143084,1725453822250,393.53,0.00012919,2]
[337143085,1725453842960,200.0,0.00025287,120]
[337143086,1725453891242,-309.19,0.00013329,2]
[337143087,1725453891264,-140.81,0.00013424,2]
[337143088,1725453934555,532.2,0.00027,120]
[337143089,1725453944306,532.2,0.00027,120]
[337143090,1725453958370,532.2,0.00027,120]
[337143091,1725453967209,532.2,0.00027,120]
[337143092,1725453980811,532.2,0.00027,120]
[337143093,1725453984519,800.0,0.00027,120]
[337143094,1725453985249,510.0,0.00015068,120]
[337143095,1725453985501,510.0,0.00015342,120]
[337143096,1725453985756,510.0,0.00015616,120]
[337143097,1725453986049,510.0,0.0001589,120]
[337143098,1725453986425,510.0,0.00016164,120]
[337143099,1725453986689,510.0,0.00016438,120]
[337143100,1725453986988,510.0,0.00016712,120]
[337143101,1725453987279,510.0,0.00016986,120]
[337143102,1725453987544,510.0,0.0001726,120]
[337143103,1725453987814,510.0,0.00017534,120]
[337143104,1725453988232,510.0,0.00017808,120]
[337143105,1725453988493,510.0,0.00018082,120]
[337143106,1725453988521,532.2,0.00027,120]
[337143107,1725453988771,510.0,0.00018356,120]
[337143108,1725453989030,510.0,0.0001863,120]
[337143109,1725453989687,510.0,0.00018904,120]
[337143110,1725453989935,279.19681363,0.00019178,120]
[337143111,1725453993445,278.27,0.00011038,2]
[337143112,1725453997027,-500.0,0.00014276,5]
[337143113,1725453998633,532.2,0.00027,120]
[337143114,1725454007698,532.2,0.00027,120]
[337143115,1725454016551,532.2,0.00027,120]
[337143116,1725454025072,532.2,0.00027,120]
[337143117,1725454033040,179.0,0.000178,120]
[337143118,1725454033565,608.0,0.000178,120]
[337143119,1725454033615,274.0,0.000178,120]
[337143120,1725454033649,179.0,0.0001779,120]
[337143121,1725454033687,150.5,0.000178,120]
[337143122,1725454033913,608.0,0.0001779,120]
[337143123,1725454033941,999.0,0.000178,120]
[337143124,1725454033982,179.0,0.0001778,120]
[337143125,1725454034014,274.0,0.0001779,120]
[337143126,1725454034187,242.12,0.0001779,120]
[337143127,1725454034223,158.0,0.000178,120]
[337143128,1725454034383,608.0,0.0001778,120]
[337143129,1725454034455,179.0,0.000178,120]
[337143130,1725454034529,274.0,0.0001778,120]
[337143131,1725454034629,999.0,0.0001779,120]
[337143132,1725454035005,158.0,0.0001779,120]
[337143133,1725454035040,532.2,0.00027,120]
[337143134,1725454035073,608.0,0.000178,120]
[337143135,1725454035104,179.0,0.0001779,120]
[337143136,1725454035144,274.0,0.000178,120]
[337143137,1725454035190,999.0,0.0001778,120]
[337143138,1725454035230,158.0,0.0001778,120]
[337143139,1725454035420,179.0,0.0001778,120]
[337143140,1725454035499,274.0,0.0001779,120]
[337143141,1725454035567,608.0,0.0001779,120]
[337143142,1725454035603,999.0,0.000178,120]
[337143143,1725454035699,158.0,0.000178,120]
[337143144,1725454035908,179.0,0.000178,120]
[337143145,1725454035986,274.0,0.0001778,120]
[337143146,1725454036068,608.0,0.0001778,120]
[337143147,1725454036174,158.0,0.0001779,120]
[337143148,1725454036454,999.0,0.0001779,120]
[337143149,1725454036483,179.0,0.0001779,120]
[337143150,1725454036520,274.0,0.000178,120]
[337143151,1725454036663,158.0,0.0001778,120]
[337143152,1725454036696,608.0,0.000178,120]
[337143153,1725454036972,999.0,0.0001778,120]
[337143154,1725454037005,274.0,0.0001779,120]
[337143155,1725454037043,179.0,0.000178,120]
[337143156,1725454037118,158.0,0.000178,120]
[337143157,1725454037248,608.0,0.0001779,120]
[337143158,1725454037488,999.0,0.000178,120]
[337143159,1725454037519,274.0,0.000178,120]
[337143160,1725454037557,181.94,0.0001779,120]
[337143161,1725454037686,158.0,0.0001779,120]
[337143162,1725454037756,608.0,0.000178,120]
[337143163,1725454037918,999.0,0.0001779,120]
[337143164,1725454037959,281.34,0.0001779,120]
[337143165,1725454038235,158.0,0.000178,120]
[337143166,1725454038289,612.93,0.0001779,120]
[337143167,1725454038384,999.0,0.000178,120]
[337143168,1725454038666,164.43,0.0001779,120]
[337143169,1725454038955,1008.31,0.0001779,120]
[337143170,1725454043429,532.2,0.00027,120]
[337143171,1725454052166,532.2,0.00027,120]
[337143172,1725454071147,1942.0,0.00027,120]
[337143173,1725454087446,532.2,0.00027,120]
[337143174,1725454094194,532.2,0.00027,120]
[337143175,1725454100818,532.2,0.00027,120]
[337143176,1725454106525,532.2,0.00027,120]
[337143177,1725454113419,532.2,0.00027,120]
[337143178,1725454141052,231.3,0.00012924,2]
[337143179,1725454142330,-300.0,0.000133,4]
[337143180,1725454142357,-111.11677835,0.00013302,2]
[337143181,1725454146841,532.2,0.00027,120]
[337143182,1725454153612,150.5,0.000178,120]
[337143183,1725454154088,150.5,0.0001779,120]
[337143184,1725454154573,150.5,0.0001778,120]
[337143185,1725454155060,150.5,0.000178,120]
[337143186,1725454155560,150.5,0.0001779,120]
[337143187,1725454156057,150.5,0.0001778,120]
[337143188,1725454156118,532.2,0.00027,120]
[337143189,1725454156600,150.5,0.000178,120]
[337143190,1725454157313,200.33,0.0001779,120]
[337143191,1725454166130,1064.4,0.00027,120]
[337143192,1725454193355,2000.0,0.00012788,2]
[337143193,1725454222431,250.0,0.00012794,2]
[337143196,1725454232068,-167.15322165,0.00013302,2]
[337143197,1725454232078,-430.85621477,0.000134,4]
[337143198,1725454232115,-169.14378523,0.000134,4]
[337143199,1725454232124,-56.05,0.00013424,2]
[337143200,1725454232133,-116.15322765,0.000135,4]
[337143201,1725454232144,-783.84677235,0.000135,4]
[337143202,1725454232154,-750.0,0.000135,2]
[337143203,1725454232162,-1200.0,0.000136,4]
[337143204,1725454232172,-150.0,0.00013671,2]
[337143206,1725454232181,-150.0,0.00013679,2]
[337143208,1725454232190,-300.0,0.00013679,2]
[337143209,1725454232199,-38.73477412,0.0001368,2]
[337143210,1725454232217,-361.36554768,0.0001368,2]
[337143211,1725454233085,-4244.17765157,0.0001368,2]
[337143212,1725454233097,-5439.96,0.0001368,2]
[337143213,1725454233109,-1472.1462219,0.0001368,2]
[337143214,1725454233126,-1316.73334251,0.0001368,2]
[337143215,1725454233138,-1163.61475187,0.0001368,2]
[337143216,1725454233149,-4216.67310528,0.0001368,2]
[337143217,1725454233161,-1767.74,0.0001368,2]
[337143218,1725454233180,-353.15035872,0.0001368,2]
[337143219,1725454233191,-5437.25,0.0001368,2]
[337143226,1725454237868,-3000.56416943,0.0001368,2]
[337143227,1725454237924,-5065.1991,0.0001368,2]
[337143228,1725454237936,-7226.30827692,0.0001368,2]
[337143229,1725454237945,-655.0721,0.0001368,2]
[337143230,1725454237955,-3818.34709453,0.0001368,2]
[337143231,1725454237964,-200.0,0.00013699,2]
[337143232,1725454237973,-500.0,0.00013699,2]
[337143233,1725454237983,-1000.0,0.000137,2]
[337143234,1725454237992,-1500.0,0.000137,5]
[337143235,1725454238002,-1538.73603761,0.00013708,2]
[337143236,1725454238012,-150.99,0.00013708,2]
[337143237,1725454238021,-7743.93505041,0.00013742,2]
[337143238,1725454238033,-5953.61494959,0.00013742,2]
[337143239,1725454238042,-3599.54004641,0.00013768,2]
[337143240,1725454238059,-218.8070481,0.00013768,2]
[337143241,1725454238068,-156.95057678,0.0001377,2]
[337143242,1725454238077,-8708.53237562,0.0001378,2]
[337143243,1725454238089,-13724.235,0.0001378,2]
[337143244,1725454238101,-1384.75,0.0001378,2]
[337143245,1725454238113,-5915.5,0.0001378,2]
[337143246,1725454238145,-474.2466,0.0001378,2]
[337143306,1725454240160,-683.9464893,0.0001378,2]
[337143318,1725454243442,-7250.94882884,0.0001378,2]
[337143319,1725454243458,-311.42,0.0001378,2]
[337143321,1725454272913,302.0,0.000178,120]
[337143322,1725454273397,302.0,0.0001779,120]
[337143323,1725454274181,302.0,0.0001778,120]
[337143324,1725454274658,302.0,0.000178,120]
[337143325,1725454275113,302.0,0.0001779,120]
[337143326,1725454275580,302.0,0.0001778,120]
[337143327,1725454276044,302.0,0.000178,120]
[337143328,1725454276674,302.0,0.0001779,120]
[337143329,1725454277825,302.0,0.000178,120]
[337143330,1725454278233,306.18,0.0001779,120]
[337143331,1725454289992,532.2,0.00027,120]
[337143332,1725454297256,532.2,0.00027,120]
[337143333,1725454304356,532.2,0.00027,120]
[337143334,1725454326964,685.17,0.00013097,2]
[337143335,1725454331130,161.44,0.00013088,2]
[337143336,1725454357711,202.25,0.00013017,2]
[337143337,1725454408318,2000.0,0.00025108,120]
[337143338,1725454408779,2000.0,0.00025971,120]
[337143339,1725454409204,2000.0,0.00026833,120]
[337143340,1725454429691,184.532675,0.00025163,120]
[337143341,1725454430169,500.0,0.00025933,120]
[337143342,1725454430796,500.0,0.00026704,120]
[337143343,1725454449775,500.0,0.00025071,120]
[337143344,1725454452182,500.0,0.00026371,120]
[337143345,1725454459397,160.61,0.00012933,2]
[337143346,1725454482146,200.0,0.00024364,120]
[337143347,1725454482619,200.0,0.00026066,120]
[337143348,1725454611119,250.44,0.00011015,2]
[337143349,1725454614126,550.0,0.00011,2]
[337143350,1725454615231,600.0,0.00013,2]
[337143355,1725454714122,2000.0,0.00012933,2]
[337143356,1725454722105,250.0,0.00012911,2]
[337143357,1725454734926,214.96,0.00012929,2]
[337143358,1725454778740,-245.3,0.00015,15]
[337143359,1725454809307,451.86,0.00012912,2]
[337143360,1725454810926,-300.0,0.000138,5]
[337143361,1725454811224,-300.0,0.000139,5]
[337143362,1725454831538,-636.52653892,0.00014276,5]
[337143363,1725454831561,-1136.52653892,0.00014276,5]
[337143364,1725454831589,-1136.52653893,0.0001456,5]
[337143365,1725454831762,-196245.12038323,0.000149,8]
[337143366,1725454845456,163.16,0.00012929,2]
[337143367,1725454936178,1797.85,0.00027,120]
[337143368,1725454958689,-53754.87961677,0.000149,8]
[337143369,1725454958709,-19125.21717595,0.000149,10]
[337143370,1725454958730,-300.0,0.000149,5]
[337143371,1725454958752,-3025.6519609,0.0001499,5]
[337143372,1725454958781,-320.0,0.00015,5]
[337143373,1725454958803,-300.0,0.00015,5]
[337143374,1725455009567,2000.0,0.00024856,120]
[337143375,1725455010153,2000.0,0.00025746,120]
[337143376,1725455010689,2000.0,0.00026637,120]
[337143377,1725455031710,500.0,0.0002625,120]
[337143378,1725455049887,500.0,0.00025071,120]
[337143379,1725455050273,500.0,0.00026371,120]
[337143380,1725455085747,200.0,0.00024151,120]
[337143381,1725455086176,200.0,0.00025895,120]
[337143384,1725455207664,2000.0,0.00012812,2]
[337143385,1725455246917,280.03,0.00010886,2]
[337143386,1725455260512,250.0,0.00012795,2]
[337143387,1725455283307,975.27,0.00012804,2]
[337143388,1725455298986,1061.3020586,0.00027,120]
[337143389,1725455313176,640.16,0.00012823,2]
[337143391,1725455319478,638.51,0.0001282,2]
[337143392,1725455328870,209.13,0.00012919,2]
[337143393,1725455332373,1000.0,0.00025,60]
[337143394,1725455336235,175.99,0.00012825,2]
[337143395,1725455350895,-280.03,0.0001315,2]
[337143396,1725455350928,-162.0,0.00013199,2]
[337143397,1725455350955,-1467.06958035,0.000132,2]
[337143408,1725455398614,214.96,0.0001285,2]
[337143422,1725455431898,-397.56791311,0.0001318,2]
[337143425,1725455431909,-603.27489612,0.0001318,2]
[337143432,1725455431970,-462.48719077,0.0001318,2]
[337143434,1725455431979,-532.93041965,0.000132,2]
[337143436,1725455431988,-1463.33,0.00013549,2]
[337143437,1725455431997,-1183.3166,0.00013559,2]
[337143438,1725455432007,-1000.0,0.000136,2]
[337143439,1725455432015,-1463.33,0.00013639,2]
[337143440,1725455432024,-300.0,0.00013659,2]
[337143441,1725455432033,-1463.33,0.0001366,2]
[337143442,1725455432042,-1463.33,0.0001366,2]
[337143443,1725455432051,-1463.33,0.0001366,2]
[337143444,1725455432060,-1463.33,0.0001366,2]
[337143445,1725455432070,-150.0,0.00013669,2]
[337143446,1725455432079,-1191.13486743,0.0001367,2]
[337143447,1725455432090,-272.19513257,0.0001367,2]
[337143448,1725455432099,-684.49862562,0.0001367,2]
[337143449,1725455432110,-778.83137438,0.0001367,2]
[337143450,1725455432120,-1463.33,0.0001367,2]
[337143451,1725455432129,-1459.92549135,0.0001368,2]
[337143452,1725455432140,-1875.42835547,0.0001368,2]
[337143453,1725455432151,-353.51585318,0.0001368,2]
[337143454,1725455432161,-720.80414682,0.0001368,2]
[337143457,1725455432227,-1502.91855318,0.0001368,2]
[337143459,1725455432238,-2028.1189,0.0001368,2]
[337143460,1725455432247,-12494.2177,0.0001368,2]
[337143462,1725455432256,-493.199,0.0001368,2]
[337143464,1725455432266,-499.99,0.0001368,2]
[337143466,1725455432276,-3054.67767568,0.0001368,2]
[337143467,1725455432286,-500.0,0.00013699,2]
[337143469,1725455432295,-849.827602,0.000137,2]
[337143470,1725455432304,-5703.7,0.000137,2]
[337143471,1725455432313,-440.72559935,0.000137,2]
[337143472,1725455432322,-440.7255993,0.00013711,2]
[337143473,1725455432331,-440.7255993,0.00013723,2]
[337143474,1725455432340,-440.7255993,0.00013734,2]
[337143475,1725455432349,-440.7255993,0.00013746,2]
[337143476,1725455432359,-440.7255993,0.00013757,2]
[337143477,1725455432369,-440.7255993,0.00013769,2]
[337143478,1725455432378,-158.68309694,0.00013773,2]
[337143479,1725455432387,-124881.63937475,0.0001378,2]
[337143480,1725455432399,-642.3977412,0.0001378,2]
[337143481,1725455432410,-3206.11771593,0.0001378,2]
[337143482,1725455432421,-1033.7,0.0001378,2]
[337143483,1725455432436,-397.20716827,0.0001378,2]
[337143484,1725455432554,-42.27845981,0.0001378,2]
[337143485,1725455432566,-388.88750137,0.0001378,2]
[337143486,1725455432589,-641.06546605,0.0001378,2]
[337143487,1725455432603,-113766.70657262,0.0001378,2]
[337143488,1725455432612,-322.54,0.0001378,2]
[337143489,1725455432621,-1093.67109517,0.0001378,2]
[337143490,1725455432631,-399.1088984,0.0001378,2]
[337143491,1725455432640,-5732.85274132,0.0001378,2]
[337143492,1725455432650,-2236.73860892,0.0001378,2]
[337143493,1725455432809,-5800.0,0.00013791,2]
[337143494,1725455432837,-5800.0,0.000138,2]
[337143495,1725455432847,-3054.6776756,0.00013816,2]
[337143496,1725455432857,-151.64,0.0001387,2]
[337143497,1725455432866,-151.64,0.0001387,2]
[337143498,1725455432876,-151.64,0.0001387,2]
[337143499,1725455432885,-151.64,0.0001387,2]
[337143500,1725455432895,-151.64,0.0001387,2]
[337143501,1725455432905,-151.64,0.0001387,2]
[337143502,1725455432914,-151.64,0.0001387,2]
[337143503,1725455432924,-151.64,0.0001387,2]
[337143504,1725455432933,-151.64,0.0001387,2]
[337143505,1725455432943,-151.64,0.0001387,2]
[337143506,1725455432953,-151.64,0.0001387,2]
[337143507,1725455432963,-151.64,0.0001387,2]
[337143508,1725455432973,-151.64,0.0001387,2]
[337143509,1725455432983,-151.64,0.0001387,2]
[337143510,1725455432992,-151.64,0.0001387,2]
[337143511,1725455433002,-151.64,0.0001387,2]
[337143512,1725455433012,-151.64,0.0001387,2]
[337143513,1725455433021,-508.7964836,0.00013873,2]
[337143514,1725455433031,-246.96233354,0.00013873,2]
[337143515,1725455433041,-2461.64325602,0.00013877,2]
[337143516,1725455433050,-500.0,0.00013879,2]
[337143517,1725455433060,-500.0,0.00013879,2]
[337143518,1725455433070,-896.0,0.00013879,2]
[337143519,1725455433080,-81390.42233481,0.0001388,2]
[337143523,1725455438070,-205.15,0.00013298,2]
[337143524,1725455438080,-217.83613922,0.0001378,2]
[337143525,1725455438127,-222.88946008,0.0001378,2]
[337143526,1725455438137,-2607.42924395,0.00013877,2]
[337143527,1725455438202,-6820.96783463,0.00013877,2]
[337143528,1725455438294,-8410.26135669,0.00013877,2]
[337143529,1725455438305,-1523.2211393,0.00013877,2]
[337143530,1725455438524,-331.26647359,0.00013877,2]
[337143532,1725455438534,-13.80613136,0.00013879,2]
[337143572,1725455443859,-318.7686708,0.00013879,2]
[337143576,1725455446092,-167.42519784,0.00013879,2]
[337143577,1725455446101,-500.0,0.00013879,2]
[337143578,1725455446111,-500.0,0.00013879,2]
[337143579,1725455446121,-500.0,0.00013879,2]
[337143580,1725455446131,-500.0,0.00013879,2]
[337143581,1725455446141,-500.0,0.00013879,2]
[337143582,1725455446150,-500.0,0.00013879,2]
[337143583,1725455446159,-500.0,0.00013879,2]
[337143584,1725455446169,-500.0,0.00013879,2]
[337143585,1725455446179,-500.0,0.00013879,2]
[337143586,1725455446188,-500.0,0.00013879,2]
[337143587,1725455446198,-507.31920169,0.00013879,2]
[337143588,1725455446211,-500.0,0.00013879,2]
[337143589,1725455446222,-500.0,0.00013879,2]
[337143590,1725455446231,-309.84645943,0.0001388,2]
[337143591,1725455446258,-1913.22923398,0.0001388,2]
[337143592,1725455446270,-566.61,0.0001388,2]
[337143594,1725455456660,502.25932283,0.00013,2]
[337143962,1725455479733,15315.65832565,0.0001,2]
[337144059,1725455510771,500.0,0.00027,120]
[337144119,1725455514568,500.0,0.00027,120]
[337144143,1725455520454,500.0,0.00027,120]
[337144144,1725455521327,500.0,0.00027,120]
[337144145,1725455522485,500.0,0.00027,120]
[337144146,1725455523769,500.0,0.00027,120]
[337144147,1725455523993,500.0,0.00027,120]
[337144148,1725455524674,500.0,0.00027,120]
[337144149,1725455525525,500.0,0.00027,120]
[337144150,1725455526257,500.0,0.00027,120]
[337144151,1725455526919,500.0,0.00027,120]
[337144152,1725455527638,500.0,0.00027,120]
[337144167,1725455528302,500.0,0.00027,120]
[337144197,1725455529222,500.0,0.00027,120]
[337144223,1725455529867,500.0,0.00027,120]
[337144249,1725455530494,500.0,0.00027,120]
[337144270,1725455531433,500.0,0.00027,120]
[337144275,1725455532182,500.0,0.00027,120]
[337144281,1725455533571,500.0,0.00027,120]
[337144284,1725455534281,500.0,0.00027,120]
[337144289,1725455535636,500.0,0.00027,120]
[337144292,1725455536354,500.0,0.00027,120]
[337144296,1725455537020,500.0,0.00027,120]
[337144298,1725455537648,500.0,0.00027,120]
[337144299,1725455538147,500.0,0.00027,120]
[337144301,1725455539343,500.0,0.00027,120]
[337144306,1725455539946,500.0,0.00027,120]
[337144310,1725455540899,500.0,0.00027,120]
[337144311,1725455541307,500.0,0.00027,120]
[337144315,1725455542082,500.0,0.00027,120]
[337144316,1725455542669,500.0,0.00027,120]
[337144317,1725455543588,500.0,0.00027,120]
[337144318,1725455545568,500.0,0.00027,120]
[337144319,1725455547279,500.0,0.00027,120]
[337144320,1725455548092,500.0,0.00027,120]
[337144321,1725455548936,500.0,0.00027,120]
[337144322,1725455549728,500.0,0.00027,120]
[337144323,1725455550503,500.0,0.00027,120]
[337144324,1725455551166,500.0,0.00027,120]
[337144325,1725455551716,500.0,0.00027,120]
[337144326,1725455552222,500.0,0.00027,120]
[337144327,1725455553087,500.0,0.00027,120]
[337144328,1725455553612,500.0,0.00027,120]
[337144329,1725455554295,500.0,0.00027,120]
[337144330,1725455555461,500.0,0.00027,120]
[337144331,1725455555626,500.0,0.00027,120]
[337144332,1725455557600,500.0,0.00027,120]
[337144333,1725455558775,500.0,0.00027,120]
[337144334,1725455560122,500.0,0.00027,120]
[337144335,1725455561384,500.0,0.00027,120]
[337144336,1725455562602,500.0,0.00027,120]
[337144337,1725455563219,500.0,0.00027,120]
[337144338,1725455564148,500.0,0.00027,120]
[337144339,1725455564822,500.0,0.00027,120]
[337144340,1725455566030,500.0,0.00027,120]
[337144341,1725455566790,500.0,0.00027,120]
[337144342,1725455567731,500.0,0.00027,120]
[337144343,1725455568411,500.0,0.00027,120]
[337144344,1725455569238,500.0,0.00027,120]
[337144345,1725455569934,500.0,0.00027,120]
[337144346,1725455570668,500.0,0.00027,120]
[337144347,1725455571272,500.0,0.00027,120]
[337144348,1725455571951,500.0,0.00027,120]
[337144349,1725455572511,500.0,0.00027,120]
[337144350,1725455573025,500.0,0.00027,120]
[337144351,1725455573435,500.0,0.00027,120]
[337144352,1725455573844,500.0,0.00027,120]
[337144353,1725455574142,500.0,0.00027,120]
[337144354,1725455575801,500.0,0.00027,120]
[337144355,1725455577904,500.0,0.00027,120]
[337144356,1725455579158,500.0,0.00027,120]
[337144357,1725455580507,500.0,0.00027,120]
[337144358,1725455581390,500.0,0.00027,120]
[337144359,1725455582136,500.0,0.00027,120]
[337144360,1725455582924,500.0,0.00027,120]
[337144361,1725455583700,500.0,0.00027,120]
[337144362,1725455584540,500.0,0.00027,120]
[337144363,1725455585292,500.0,0.00027,120]
[337144364,1725455586672,500.0,0.00027,120]
[337144365,1725455587215,500.0,0.00027,120]
[337144366,1725455588384,500.0,0.00027,120]
[337144367,1725455588916,500.0,0.00027,120]
[337144368,1725455589342,500.0,0.00027,120]
[337144369,1725455589642,500.0,0.00027,120]
[337144370,1725455590130,500.0,0.00027,120]
[337144371,1725455590512,500.0,0.00027,120]
[337144372,1725455590932,500.0,0.00027,120]
[337144373,1725455591333,500.0,0.00027,120]
[337144374,1725455591770,500.0,0.00027,120]
[337144375,1725455592070,500.0,0.00027,120]
[337144376,1725455592428,500.0,0.00027,120]
[337144377,1725455592845,500.0,0.00027,120]
[337144378,1725455593167,500.0,0.00027,120]
[337144379,1725455593597,500.0,0.00027,120]
[337144380,1725455594021,500.0,0.00027,120]
[337144381,1725455594394,500.0,0.00027,120]
[337144382,1725455594671,500.0,0.00027,120]
[337144383,1725455595140,500.0,0.00027,120]
[337144384,1725455595460,500.0,0.00027,120]
[337144385,1725455595778,500.0,0.00027,120]
[337144386,1725455596261,500.0,0.00027,120]
[337144387,1725455596582,500.0,0.00027,120]
[337144388,1725455597091,500.0,0.00027,120]
[337144389,1725455597681,500.0,0.00027,120]
[337144390,1725455597820,500.0,0.00027,120]
[337144391,1725455598423,500.0,0.00027,120]
[337144392,1725455598628,500.0,0.00027,120]
[337144393,1725455599053,500.0,0.00027,120]
[337144394,1725455599509,500.0,0.00027,120]
[337144395,1725455599811,500.0,0.00027,120]
[337144396,1725455600251,500.0,0.00027,120]
[337144397,1725455600568,500.0,0.00027,120]
[337144398,1725455600960,500.0,0.00027,120]
[337144399,1725455601381,500.0,0.00027,120]
[337144400,1725455601775,500.0,0.00027,120]
[337144401,1725455602192,500.0,0.00027,120]
[337144402,1725455602691,500.0,0.00027,120]
[337144403,1725455603116,500.0,0.00027,120]
[337144404,1725455603546,500.0,0.00027,120]
[337144405,1725455603835,500.0,0.00027,120]
[337144406,1725455604615,500.0,0.00027,120]
[337144407,1725455604664,500.0,0.00027,120]
[337144408,1725455604875,500.0,0.00027,120]
[337144409,1725455605227,500.0,0.00027,120]
[337144410,1725455605621,500.0,0.00027,120]
[337144411,1725455606042,500.0,0.00027,120]
[337144412,1725455606373,500.0,0.00027,120]
[337144413,1725455606856,500.0,0.00027,120]
[337144414,1725455607208,500.0,0.00027,120]
[337144415,1725455608150,2000.0,0.00024891,120]
[337144416,1725455608289,2000.0,0.00025927,120]
[337144417,1725455609938,2000.0,0.00026964,120]
[337144418,1725455622833,500.0,0.00027,120]
[337144419,1725455624784,500.0,0.00027,120]
[337144420,1725455625840,500.0,0.00027,120]
[337144421,1725455626627,500.0,0.00027,120]
[337144422,1725455627552,500.0,0.00027,120]
[337144423,1725455628000,500.0,0.00027,120]
[337144424,1725455629068,500.0,0.00027,120]
[337144425,1725455629287,500.0,0.00027,120]
[337144426,1725455630160,500.0,0.00027,120]
[337144427,1725455630914,500.0,0.00027,120]
[337144428,1725455631605,500.0,0.00027,120]
[337144429,1725455632550,500.0,0.00027,120]